Workbook

Sheet Employees
B1: Worldwide Sporting Goods | J1: Departments | K1: Administration
B2: Employee Information | K2: Development
K3: Production
K4: Sales
A5: Test | B5: Last Name | C5: First Name | D5: Hire Date | E5: Department | F5: Status | G5: Salary | H5: Raise
A6: =IF(E6="Sales","",E6) -> Administration | B6: Baker | C6: Amy | D6: 1988-07-28 | E6: Administration | F6: 4 | G6: 19000 | H6: =+G6*0.035 -> 665
A7: =IF(E7="Sales","",E7) -> Administration | B7: Baker | C7: Christine | D7: 1986-05-09 | E7: Administration | F7: 4 | G7: 22000 | H7: =+G7*0.035 -> 770
A8: =IF(E8="Sales","",E8) -> Administration | B8: Adelheim | C8: John | D8: 1988-11-18 | E8: Administration | F8: 2 | G8: 23000 | H8: =+G8*0.035 -> 805
A9: =IF(E9="Sales","",E9) -> Administration | B9: Johnson | C9: Jon | D9: 1982-01-10 | E9: Administration | F9: 3 | G9: 25000 | H9: =+G9*0.035 -> 875
A10: =IF(E10="Sales","",E10) -> Administration | B10: Eastburn | C10: George | D10: 1998-06-17 | E10: Administration | F10: 3 | G10: 50000 | H10: =+G10*0.035 -> 1750
A11: =IF(E11="Sales","",E11) -> Development | B11: Deibler | C11: Karl | D11: 1990-09-22 | E11: Development | F11: 2 | G11: 24000 | H11: =+G11*0.035 -> 840
A12: =IF(E12="Sales","",E12) -> Development | B12: Bachman | C12: Vance | D12: 1997-12-15 | E12: Development | F12: 7 | G12: 45000 | H12: =+G12*0.035 -> 1575
A13: =IF(E13="Sales","",E13) -> Development | B13: Callaghan | C13: Ronald | D13: 1998-09-22 | E13: Development | F13: 2 | G13: 62000 | H13: =+G13*0.035 -> 2170
A14: =IF(E14="Sales","",E14) -> Production | B14: Trimbach | C14: Doug | D14: 1968-11-24 | E14: Production | F14: 2 | G14: 16000 | H14: =+G14*0.035 -> 560
A15: =IF(E15="Sales","",E15) -> Production | B15: Roy | C15: Audrey | D15: 1973-08-17 | E15: Production | F15: 2 | G15: 21000 | H15: =+G15*0.035 -> 735
A16: =IF(E16="Sales","",E16) -> Production | B16: Wang | C16: Will | D16: 1993-02-27 | E16: Production | F16: 4 | G16: 22000 | H16: =+G16*0.035 -> 770
A17: =IF(E17="Sales","",E17) -> Production | B17: Davis | C17: Henry | D17: 1993-09-02 | E17: Production | F17: 2 | G17: 28000 | H17: =+G17*0.035 -> 980
A18: =IF(E18="Sales","",E18) -> Production | B18: Messick | C18: Steve | D18: 1982-01-08 | E18: Production | F18: 3 | G18: 28000 | H18: =+G18*0.035 -> 980
A19: =IF(E19="Sales","",E19) -> Production | B19: Deal | C19: Laura | D19: 1995-05-17 | E19: Production | F19: 2 | G19: 30000 | H19: =+G19*0.035 -> 1050
A20: =IF(E20="Sales","",E20) -> Production | B20: Sticklebaugh | C20: Wendy | D20: 1978-06-24 | E20: Production | F20: 3 | G20: 32000 | H20: =+G20*0.035 -> 1120
A21: =IF(E21="Sales","",E21) -> Production | B21: Fimbel | C21: Josephine | D21: 1997-09-22 | E21: Production | F21: 2 | G21: 40000 | H21: =+G21*0.035 -> 1400
A22: =IF(E22="Sales","",E22) -> Production | B22: Fredericks | C22: Miller | D22: 1978-10-05 | E22: Production | F22: 3 | G22: 40000 | H22: =+G22*0.035 -> 1400
A23: =IF(E23="Sales","",E23) -> Production | B23: Albrecht | C23: Horst | D23: 1997-11-21 | E23: Production | F23: 2 | G23: 41000 | H23: =+G23*0.035 -> 1435
A24: =IF(E24="Sales","",E24) -> Production | B24: Parker | C24: Paul | D24: 1972-04-05 | E24: Production | F24: 2 | G24: 48000 | H24: =+G24*0.035 -> 1680
A25: =IF(E25="Sales","",E25) ->  | B25: Feldgus | C25: Ernest | D25: 1989-11-21 | E25: Sales | F25: 2 | G25: 24000 | H25: =+G25*0.035 -> 840
A26: =IF(E26="Sales","",E26) ->  | B26: Abramas | C26: Alice | D26: 1992-11-30 | E26: Sales | F26: 2 | G26: 25000 | H26: =+G26*0.035 -> 875
A27: =IF(E27="Sales","",E27) ->  | B27: Caracio | C27: Terry | D27: 1992-04-15 | E27: Sales | F27: 2 | G27: 25000 | H27: =+G27*0.035 -> 875
A28: =IF(E28="Sales","",E28) ->  | B28: Carpenter | C28: John | D28: 1993-05-27 | E28: Sales | F28: 2 | G28: 26000 | H28: =+G28*0.035 -> 910
A29: =IF(E29="Sales","",E29) ->  | B29: Faraco | C29: Janice | D29: 1993-12-22 | E29: Sales | F29: 2 | G29: 29000 | H29: =+G29*0.035 -> 1015
A30: =IF(E30="Sales","",E30) ->  | B30: Weinstein | C30: Perry | D30: 1981-08-31 | E30: Sales | F30: 3 | G30: 32000 | H30: =+G30*0.035 -> 1120
A31: =IF(E31="Sales","",E31) ->  | B31: Edwards | C31: Susan | D31: 1996-01-19 | E31: Sales | F31: 2 | G31: 37000 | H31: =+G31*0.035 -> 1295
A32: =IF(E32="Sales","",E32) ->  | B32: Killough | C32: Frank | D32: 1983-12-15 | E32: Sales | F32: 7 | G32: 45000 | H32: =+G32*0.035 -> 1575
A33: =IF(E33="Sales","",E33) ->  | B33: Edwards | C33: Fred | D33: 1998-09-13 | E33: Sales | F33: 4 | G33: 55000 | H33: =+G33*0.035 -> 1925

Sheet Administration
A1: Worldwide Sporting Goods
A2: Employees by Department
A5: Last Name | B5: First Name | C5: Department | D5: Hire Date | E5: Status | F5: Salary | G5: Raise | H5: New Salary
A6: Eastburn | B6: George | C6: Administration | D6: 1968-12-22 | E6: 3 | F6: 50000 | G6: =+F6*0.035 -> 1750 | H6: =+F6+G6 -> 51750
A7: Adelheim | B7: John | C7: Administration | D7: 1987-06-10 | E7: 2 | F7: 23000 | G7: =+F7*0.035 -> 805 | H7: =+F7+G7 -> 23805
A8: Baker | B8: Christine | C8: Administration | D8: 1995-03-05 | E8: 4 | F8: 22000 | G8: =+F8*0.035 -> 770 | H8: =+F8+G8 -> 22770
A9: Baker | B9: Amy | C9: Administration | D9: 1995-06-10 | E9: 4 | F9: 19000 | G9: =+F9*0.035 -> 665 | H9: =+F9+G9 -> 19665
A10: Johnson | B10: Jon | C10: Administration | D10: 1990-05-21 | E10: 3 | F10: 25000 | G10: =+F10*0.035 -> 875 | H10: =+F10+G10 -> 25875

Sheet Development
A1: Worldwide Sporting Goods
A2: Employees by Department
A5: Last Name | B5: First Name | C5: Department | D5: Hire Date | E5: Status | F5: Salary | G5: Raise | H5: New Salary
A6: Callaghan | B6: Ronald | C6: Development | D6: 1970-05-05 | E6: 2 | F6: 62000 | G6: =+F6*0.035 -> 2170 | H6: =+F6+G6 -> 64170
A7: Bachman | B7: Vance | C7: Development | D7: 1990-09-09 | E7: 7 | F7: 45000 | G7: =+F7*0.035 -> 1575 | H7: =+F7+G7 -> 46575
A8: Deibler | B8: Karl | C8: Development | D8: 1978-09-26 | E8: 2 | F8: 24000 | G8: =+F8*0.035 -> 840 | H8: =+F8+G8 -> 24840

Sheet Production
A1: Worldwide Sporting Goods
A2: Employees by Department
A5: Last Name | B5: First Name | C5: Department | D5: Hire Date | E5: Status | F5: Salary | G5: Raise | H5: New Salary
A6: Albrecht | B6: Horst | C6: Production | D6: 1960-11-07 | E6: 2 | F6: 41000 | G6: =+F6*0.035 -> 1435 | H6: =+F6+G6 -> 42435
A7: Fimbel | B7: Josephine | C7: Production | D7: 1994-06-10 | E7: 2 | F7: 40000 | G7: 1400 | H7: 41400
A8: Deal | B8: Laura | C8: Production | D8: 1985-04-15 | E8: 2 | F8: 30000 | G8: 1050 | H8: 31050
A9: Davis | B9: Henry | C9: Production | D9: 1992-10-06 | E9: 2 | F9: 28000 | G9: 980 | H9: 28980
A10: Messick | B10: Steve | C10: Production | D10: 1989-01-01 | E10: 3 | F10: 28000 | G10: 980 | H10: 28980
A11: Fredericks | B11: Miller | C11: Production | D11: 1992-02-02 | E11: 3 | F11: 40000 | G11: 1400 | H11: 41400
A12: Sticklebaugh | B12: Wendy | C12: Production | D12: 1978-05-19 | E12: 3 | F12: 32000 | G12: 1120 | H12: 33120
A13: Roy | B13: Audrey | C13: Production | D13: 1994-09-02 | E13: 2 | F13: 21000 | G13: 735 | H13: 21735
A14: Parker | B14: Paul | C14: Production | D14: 1986-08-09 | E14: 2 | F14: 48000 | G14: 1680 | H14: 49680
A15: Trimbach | B15: Doug | C15: Production | D15: 1995-06-01 | E15: 2 | F15: 16000 | G15: 560 | H15: 16560
A16: Wang | B16: Will | C16: Production | D16: 1975-06-23 | E16: 4 | F16: 22000 | G16: 770 | H16: 22770

Sheet Sales
A1: Worldwide Sporting Goods
A2: Employees by Department
A5: Last Name | B5: First Name | C5: Department | D5: Hire Date | E5: Status | F5: Salary | G5: Raise | H5: New Salary
A6: Edwards | B6: Fred | C6: Sales | D6: 1965-08-12 | E6: 4 | F6: 55000 | G6: =+F6*0.035 -> 1925 | H6: =+F6+G6 -> 56925
A7: Edwards | B7: Susan | C7: Sales | D7: 1983-01-25 | E7: 2 | F7: 37000 | G7: 1295 | H7: 38295
A8: Faraco | B8: Janice | C8: Sales | D8: 1989-08-18 | E8: 2 | F8: 29000 | G8: 1015 | H8: 30015
A9: Carpenter | B9: John | C9: Sales | D9: 1990-02-12 | E9: 2 | F9: 26000 | G9: 910 | H9: 26910
A10: Abramas | B10: Alice | C10: Sales | D10: 1985-08-06 | E10: 2 | F10: 25000 | G10: 875 | H10: 25875
A11: Caracio | B11: Terry | C11: Sales | D11: 1994-08-09 | E11: 2 | F11: 25000 | G11: 875 | H11: 25875
A12: Feldgus | B12: Ernest | C12: Sales | D12: 1978-09-28 | E12: 2 | F12: 24000 | G12: 840 | H12: 24840
A13: Killough | B13: Frank | C13: Sales | D13: 1980-09-01 | E13: 7 | F13: 45000 | G13: 1575 | H13: 46575
A14: Weinstein | B14: Perry | C14: Sales | D14: 1975-03-12 | E14: 3 | F14: 32000 | G14: 1120 | H14: 33120

Sheet Employee Totals
A1: Worldwide Sporting Goods
A2: Employee Information
A5: Department | B5: Salary | C5: Raise | D5: New Salary
A6: Administration | B6: =SUM(Administration!F6:F10) -> 139000 | C6: =SUM(Administration!G6:G10) -> 4865 | D6: =+B6+C6 -> 143865
A7: Development | B7: =SUM(D_Salary) -> 131000 | C7: =SUM(D_Raise) -> 4585 | D7: =+B7+C7 -> 135585
A8: Production | B8: =SUM(P_Salary) -> 346000 | C8: =SUM(P_Raise) -> 12110 | D8: =+B8+C8 -> 358110
A9: Sales | B9: =SUM(S_Salary) -> 298000 | C9: =SUM(S_Raise) -> 10430 | D9: =+B9+C9 -> 308430

Sheet Sheet6

Sheet Sheet7

Sheet Sheet8
